[Event "Titled Tuesday Blitz May 24 Early 2022"]
[White "Bas Mas, Jose Joaquin"]
[Black "Chen, Qi b"]
[WhiteFideId "22219064"]
[BlackFideId "8614733"]
[WhiteElo "2233"]
[BlackElo "2432"]
[Result "0-1"]
[Round "02"]
[TimeControl "180+1"]
[Date "2022.05.25"]
[WhiteClock "0:00:30"]
[BlackClock "0:00:10"]

1. e4 {[%clk 0:03:00]}  c5 {[%clk 0:02:59]} 2. Nc3 {[%clk 0:03:00]}  Nc6 {[%clk 0:02:58]} 3. Bb5 {[%clk 0:03:00]}  Nd4 {[%clk 0:02:58]} 4. Nf3 {[%clk 0:03:00]}  a6 {[%clk 0:02:51]} 5. Bc4 {[%clk 0:03:00]}  e6 {[%clk 0:02:42]} 6. Nxd4 {[%clk 0:02:58]}  cxd4 {[%clk 0:02:42]} 7. Ne2 {[%clk 0:02:59]}  b5 {[%clk 0:02:41]} 8. Bb3 {[%clk 0:02:59]}  Bb7 {[%clk 0:02:39]} 9. d3 {[%clk 0:02:59]}  Qb6 {[%clk 0:02:38]} 10. O-O {[%clk 0:02:55]}  Ne7 {[%clk 0:02:36]} 11. f3 {[%clk 0:02:55]}  h5 {[%clk 0:02:20]} 12. a4 {[%clk 0:02:54]}  b4 {[%clk 0:02:12]} 13. a5 {[%clk 0:02:52]}  Qc5 {[%clk 0:02:12]} 14. Qe1 {[%clk 0:02:46]}  Nc6 {[%clk 0:02:08]} 15. Bd2 {[%clk 0:02:28]}  Nxa5 {[%clk 0:01:58]} 16. Ba4 {[%clk 0:02:28]}  Nc6 {[%clk 0:01:51]} 17. f4 {[%clk 0:02:22]}  h4 {[%clk 0:01:47]} 18. f5 {[%clk 0:02:21]}  Be7 {[%clk 0:01:46]} 19. fxe6 {[%clk 0:02:18]}  fxe6 {[%clk 0:01:27]} 20. h3 {[%clk 0:02:03]}  g5 {[%clk 0:01:24]} 21. Kh1 {[%clk 0:01:52]}  a5 {[%clk 0:01:17]} 22. c4 {[%clk 0:01:50]}  Ne5 {[%clk 0:01:11]} 23. Bc2 {[%clk 0:01:47]}  Bxe4 {[%clk 0:00:57]} 24. dxe4 {[%clk 0:01:40]}  d3 {[%clk 0:00:57]} 25. Bb3 {[%clk 0:01:35]}  dxe2 {[%clk 0:00:51]} 26. Qxe2 {[%clk 0:01:35]}  Qc7 {[%clk 0:00:41]} 27. Be3 {[%clk 0:01:33]}  Nc6 {[%clk 0:00:35]} 28. c5 {[%clk 0:01:29]}  Qe5 {[%clk 0:00:29]} 29. Rac1 {[%clk 0:01:21]}  a4 {[%clk 0:00:28]} 30. Bc4 {[%clk 0:01:19]}  a3 {[%clk 0:00:22]} 31. bxa3 {[%clk 0:01:10]}  bxa3 {[%clk 0:00:21]} 32. Ba2 {[%clk 0:01:08]}  Rb8 {[%clk 0:00:19]} 33. Qc4 {[%clk 0:01:00]}  Rb2 {[%clk 0:00:18]} 34. Rc2 {[%clk 0:00:46]}  Rf8 {[%clk 0:00:17]} 35. Rxf8+ {[%clk 0:00:40]}  Bxf8 {[%clk 0:00:18]} 36. Bc1 {[%clk 0:00:40]}  Rxc2 {[%clk 0:00:13]} 37. Qxc2 {[%clk 0:00:41]}  Qxc5 {[%clk 0:00:12]} 38. Qxc5 {[%clk 0:00:38]}  Bxc5 {[%clk 0:00:12]} 39. Bxg5 {[%clk 0:00:37]}  Be7 {[%clk 0:00:12]} 40. Bd2 {[%clk 0:00:36]}  Bb4 {[%clk 0:00:12]} 41. Bg5 {[%clk 0:00:35]}  Be1 {[%clk 0:00:12]} 42. Bc1 {[%clk 0:00:30]}  Nb4 {[%clk 0:00:11]} 43. Bb3 {[%clk 0:00:29]}  a2 {[%clk 0:00:10]} 44. Bxa2 {[%clk 0:00:29]}  Nxa2 {[%clk 0:00:10]} 45. Bb2 {[%clk 0:00:29]}  Bg3 {[%clk 0:00:10]} 46. Kg1 {[%clk 0:00:30]}  Nb4 {[%clk 0:00:10]} 47. Kf1 {[%clk 0:00:30]}  Nd3 {[%clk 0:00:10]} 48. Ke2 {[%clk 0:00:30]}  Nxb2 {[%clk 0:00:10]} 0-1


[Site "https://www.chess.com"]

[Event "Titled Tuesday Blitz May 24 Early 2022"]
[White "Bharath Subramaniyam H"]
[Black "Petre, Nad-Titus"]
[WhiteFideId "46634827"]
[BlackFideId "1204165"]
[WhiteElo "2242"]
[BlackElo "2354"]
[Result "1-0"]
[Round "02"]
[TimeControl "180+1"]
[Date "2022.05.25"]
[WhiteClock "0:00:23"]
[BlackClock "0:00:01"]

1. e4 {[%clk 0:02:56]}  c6 {[%clk 0:02:58]} 2. d4 {[%clk 0:02:55]}  d5 {[%clk 0:02:59]} 3. Nc3 {[%clk 0:02:55]}  dxe4 {[%clk 0:02:59]} 4. Nxe4 {[%clk 0:02:56]}  Nf6 {[%clk 0:03:00]} 5. Nxf6+ {[%clk 0:02:56]}  exf6 {[%clk 0:03:01]} 6. c3 {[%clk 0:02:56]}  Bd6 {[%clk 0:03:00]} 7. Bd3 {[%clk 0:02:56]}  O-O {[%clk 0:03:00]} 8. Qc2 {[%clk 0:02:53]}  Re8+ {[%clk 0:03:01]} 9. Ne2 {[%clk 0:02:52]}  h5 {[%clk 0:03:02]} 10. O-O {[%clk 0:02:52]}  h4 {[%clk 0:03:02]} 11. Bf4 {[%clk 0:02:53]}  h3 {[%clk 0:02:50]} 12. g3 {[%clk 0:02:47]}  Na6 {[%clk 0:02:49]} 13. Bxd6 {[%clk 0:02:46]}  Qxd6 {[%clk 0:02:48]} 14. Rae1 {[%clk 0:02:43]}  Nc7 {[%clk 0:02:39]} 15. Qd2 {[%clk 0:02:37]}  Be6 {[%clk 0:02:22]} 16. Nf4 {[%clk 0:02:23]}  Bd7 {[%clk 0:01:59]} 17. Rxe8+ {[%clk 0:02:13]}  Rxe8 {[%clk 0:01:59]} 18. Re1 {[%clk 0:02:13]}  Rxe1+ {[%clk 0:01:51]} 19. Qxe1 {[%clk 0:02:14]}  g5 {[%clk 0:01:52]} 20. Nh5 {[%clk 0:02:12]}  Bg4 {[%clk 0:01:40]} 21. Be2 {[%clk 0:01:44]}  Bxh5 {[%clk 0:01:35]} 22. Bxh5 {[%clk 0:01:43]}  Qd5 {[%clk 0:01:19]} 23. Qf1 {[%clk 0:01:41]}  Qxa2 {[%clk 0:01:09]} 24. Qxh3 {[%clk 0:01:40]}  Qb1+ {[%clk 0:01:00]} 25. Kg2 {[%clk 0:01:38]}  Ne6 {[%clk 0:01:00]} 26. Bg4 {[%clk 0:01:30]}  Qe4+ {[%clk 0:00:52]} 27. Bf3 {[%clk 0:01:30]}  Qc2 {[%clk 0:00:41]} 28. d5 {[%clk 0:01:27]}  cxd5 {[%clk 0:00:31]} 29. Bxd5 {[%clk 0:01:27]}  Qxb2 {[%clk 0:00:31]} 30. Bxe6 {[%clk 0:01:26]}  fxe6 {[%clk 0:00:32]} 31. Qxe6+ {[%clk 0:01:26]}  Kg7 {[%clk 0:00:33]} 32. c4 {[%clk 0:01:22]}  a5 {[%clk 0:00:27]} 33. Qd7+ {[%clk 0:01:17]}  Kg6 {[%clk 0:00:26]} 34. Qe8+ {[%clk 0:01:09]}  Kg7 {[%clk 0:00:26]} 35. Qd7+ {[%clk 0:01:09]}  Kg6 {[%clk 0:00:26]} 36. c5 {[%clk 0:01:10]}  Qe5 {[%clk 0:00:19]} 37. Qb5 {[%clk 0:00:59]}  Qe4+ {[%clk 0:00:18]} 38. Kg1 {[%clk 0:00:56]}  Qe1+ {[%clk 0:00:17]} 39. Kg2 {[%clk 0:00:55]}  Qe4+ {[%clk 0:00:17]} 40. f3 {[%clk 0:00:52]}  Qc2+ {[%clk 0:00:16]} 41. Kh3 {[%clk 0:00:53]}  Qf5+ {[%clk 0:00:16]} 42. Kg2 {[%clk 0:00:53]}  Qc2+ {[%clk 0:00:16]} 43. Kg1 {[%clk 0:00:53]}  Qc1+ {[%clk 0:00:16]} 44. Kf2 {[%clk 0:00:53]}  Qd2+ {[%clk 0:00:15]} 45. Qe2 {[%clk 0:00:45]}  Qd4+ {[%clk 0:00:14]} 46. Qe3 {[%clk 0:00:44]}  Qb2+ {[%clk 0:00:13]} 47. Kg1 {[%clk 0:00:43]}  Qb1+ {[%clk 0:00:11]} 48. Kg2 {[%clk 0:00:43]}  a4 {[%clk 0:00:11]} 49. Qe8+ {[%clk 0:00:42]}  Kg7 {[%clk 0:00:10]} 50. Qxa4 {[%clk 0:00:43]}  Qd3 {[%clk 0:00:09]} 51. Qe4 {[%clk 0:00:39]}  Qd2+ {[%clk 0:00:09]} 52. Kh3 {[%clk 0:00:39]}  Qd7+ {[%clk 0:00:07]} 53. g4 {[%clk 0:00:39]}  Qc7 {[%clk 0:00:06]} 54. Qd5 {[%clk 0:00:39]}  Qe7 {[%clk 0:00:05]} 55. Kg3 {[%clk 0:00:37]}  Kg6 {[%clk 0:00:06]} 56. Qe4+ {[%clk 0:00:35]}  Qxe4 {[%clk 0:00:05]} 57. fxe4 {[%clk 0:00:35]}  Kf7 {[%clk 0:00:04]} 58. Kf3 {[%clk 0:00:22]}  Ke6 {[%clk 0:00:04]} 59. Ke3 {[%clk 0:00:22]}  Ke5 {[%clk 0:00:03]} 60. h3 {[%clk 0:00:23]}  Ke6 {[%clk 0:00:03]} 61. Kd4 {[%clk 0:00:23]}  Ke7 {[%clk 0:00:02]} 62. e5 {[%clk 0:00:23]}  Ke6 {[%clk 0:00:01]} 63. exf6 {[%clk 0:00:23]}  Kxf6 {[%clk 0:00:02]} 64. Kd5 {[%clk 0:00:24]}  Kg6 {[%clk 0:00:02]} 65. Ke6 {[%clk 0:00:23]}  Kg7 {[%clk 0:00:01]} 66. Kf5 {[%clk 0:00:23]}  Kh6 {[%clk 0:00:01]} 67. Kf6 {[%clk 0:00:23]} 1-0


[Site "https://www.chess.com"]

[Event "Titled Tuesday Blitz May 24 Early 2022"]
[White "Bluebaum, Matthias"]
[Black "Brodowski, Piotr"]
[WhiteFideId "24651516"]
[BlackFideId "1124480"]
[WhiteElo "2556"]
[BlackElo "2431"]
[Result "1-0"]
[Round "02"]
[TimeControl "180+1"]
[Date "2022.05.24"]
[WhiteClock "0:01:33"]
[BlackClock "0:00:20"]

1. d4 {[%clk 0:03:00]}  c5 {[%clk 0:02:57]} 2. d5 {[%clk 0:03:01]}  d6 {[%clk 0:02:57]} 3. e4 {[%clk 0:03:01]}  Nf6 {[%clk 0:02:57]} 4. Nc3 {[%clk 0:03:00]}  g6 {[%clk 0:02:55]} 5. Bb5+ {[%clk 0:03:00]}  Bd7 {[%clk 0:02:55]} 6. a4 {[%clk 0:03:01]}  Bxb5 {[%clk 0:02:55]} 7. axb5 {[%clk 0:03:01]}  Bg7 {[%clk 0:02:56]} 8. Nf3 {[%clk 0:03:01]}  O-O {[%clk 0:02:57]} 9. O-O {[%clk 0:03:02]}  Nbd7 {[%clk 0:02:57]} 10. h3 {[%clk 0:03:01]}  Nb6 {[%clk 0:02:58]} 11. Bf4 {[%clk 0:03:00]}  Ne8 {[%clk 0:02:58]} 12. Qd3 {[%clk 0:02:53]}  Nc7 {[%clk 0:02:59]} 13. Ra5 {[%clk 0:02:50]}  Qd7 {[%clk 0:02:47]} 14. Rfa1 {[%clk 0:02:49]}  a6 {[%clk 0:02:47]} 15. bxa6 {[%clk 0:02:42]}  Rxa6 {[%clk 0:02:47]} 16. Rxa6 {[%clk 0:02:42]}  Nxa6 {[%clk 0:02:46]} 17. e5 {[%clk 0:02:21]}  Nb4 {[%clk 0:02:27]} 18. Qe4 {[%clk 0:02:21]}  f5 {[%clk 0:01:09]} 19. exf6 {[%clk 0:02:20]}  Bxf6 {[%clk 0:01:10]} 20. Bg5 {[%clk 0:02:05]}  Qf5 {[%clk 0:01:05]} 21. Bxf6 {[%clk 0:01:53]}  Rxf6 {[%clk 0:01:02]} 22. Qxe7 {[%clk 0:01:50]}  N4xd5 {[%clk 0:00:14]} 23. Nxd5 {[%clk 0:01:46]}  Nxd5 {[%clk 0:00:15]} 24. Qxb7 {[%clk 0:01:36]}  Rf7 {[%clk 0:00:13]} 25. Qb8+ {[%clk 0:01:36]}  Kg7 {[%clk 0:00:13]} 26. Qxd6 {[%clk 0:01:37]}  Nf4 {[%clk 0:00:13]} 27. Qe5+ {[%clk 0:01:32]}  Qxe5 {[%clk 0:00:13]} 28. Nxe5 {[%clk 0:01:33]}  Re7 {[%clk 0:00:14]} 29. Nd3 {[%clk 0:01:33]}  Nxd3 {[%clk 0:00:14]} 30. cxd3 {[%clk 0:01:34]}  Re2 {[%clk 0:00:15]} 31. Rc1 {[%clk 0:01:34]}  Rxb2 {[%clk 0:00:15]} 32. Rxc5 {[%clk 0:01:34]}  Rd2 {[%clk 0:00:16]} 33. Rd5 {[%clk 0:01:35]}  Kf6 {[%clk 0:00:16]} 34. h4 {[%clk 0:01:35]}  h5 {[%clk 0:00:16]} 35. g3 {[%clk 0:01:35]}  Ke6 {[%clk 0:00:17]} 36. Rd8 {[%clk 0:01:33]}  Ke7 {[%clk 0:00:17]} 37. Rd4 {[%clk 0:01:31]}  Ke6 {[%clk 0:00:18]} 38. Kg2 {[%clk 0:01:32]}  Ke5 {[%clk 0:00:19]} 39. Rd8 {[%clk 0:01:32]}  Ke6 {[%clk 0:00:19]} 40. Kf3 {[%clk 0:01:33]}  Ke7 {[%clk 0:00:20]} 41. Rd4 {[%clk 0:01:33]} 1-0


[Site "https://www.chess.com"]

[Event "Titled Tuesday Blitz May 24 Early 2022"]
[White "Bocharov, Dmitry"]
[Black "Rios Escobar, Adan"]
[WhiteFideId "4138716"]
[BlackFideId "3403645"]
[WhiteElo "2541"]
[BlackElo "2447"]
[Result "1-0"]
[Round "02"]
[TimeControl "180+1"]
[Date "2022.05.25"]
[WhiteClock "0:01:28"]
[BlackClock "0:00:38"]

1. d4 {[%clk 0:03:00]}  Nf6 {[%clk 0:02:59]} 2. c4 {[%clk 0:03:00]}  g6 {[%clk 0:03:00]} 3. g3 {[%clk 0:02:59]}  Bg7 {[%clk 0:03:00]} 4. Bg2 {[%clk 0:02:59]}  c5 {[%clk 0:03:01]} 5. d5 {[%clk 0:02:56]}  b5 {[%clk 0:02:57]} 6. d6 {[%clk 0:02:52]}  Nc6 {[%clk 0:02:33]} 7. cxb5 {[%clk 0:02:51]}  Qa5+ {[%clk 0:02:31]} 8. Nc3 {[%clk 0:02:50]}  Ne4 {[%clk 0:02:27]} 9. Bxe4 {[%clk 0:02:45]}  Bxc3+ {[%clk 0:02:27]} 10. bxc3 {[%clk 0:02:45]}  Qxb5 {[%clk 0:02:15]} 11. Nf3 {[%clk 0:02:44]}  Ba6 {[%clk 0:02:11]} 12. Rb1 {[%clk 0:02:39]}  Qc4 {[%clk 0:02:10]} 13. Bxc6 {[%clk 0:02:27]}  dxc6 {[%clk 0:01:58]} 14. d7+ {[%clk 0:02:27]}  Kd8 {[%clk 0:01:58]} 15. O-O {[%clk 0:02:13]}  f6 {[%clk 0:01:45]} 16. Re1 {[%clk 0:02:07]}  h5 {[%clk 0:01:43]} 17. h4 {[%clk 0:01:54]}  g5 {[%clk 0:01:41]} 18. Bxg5 {[%clk 0:01:49]}  fxg5 {[%clk 0:01:37]} 19. Nxg5 {[%clk 0:01:49]}  Kc7 {[%clk 0:01:30]} 20. Qd2 {[%clk 0:01:44]}  Rhf8 {[%clk 0:01:16]} 21. Red1 {[%clk 0:01:40]}  Rad8 {[%clk 0:00:43]} 22. Qe3 {[%clk 0:01:33]}  Rf6 {[%clk 0:00:38]} 23. Qxe7 {[%clk 0:01:28]} 1-0


[Site "https://www.chess.com"]

[Event "Titled Tuesday Blitz May 24 Early 2022"]
[White "Boyer, Mahel"]
[Black "Yang, Kaiqi"]
[WhiteFideId "45102422"]
[BlackFideId "8604398"]
[WhiteElo "2328"]
[BlackElo "2373"]
[Result "0-1"]
[Round "02"]
[TimeControl "180+1"]
[Date "2022.05.24"]
[WhiteClock "0:00:03"]
[BlackClock "0:00:06"]

1. e4 {[%clk 0:03:00]}  e6 {[%clk 0:03:00]} 2. b3 {[%clk 0:02:52]}  c5 {[%clk 0:02:58]} 3. Bb2 {[%clk 0:02:53]}  Nc6 {[%clk 0:02:58]} 4. Nf3 {[%clk 0:02:50]}  Nf6 {[%clk 0:02:54]} 5. e5 {[%clk 0:02:47]}  Nd5 {[%clk 0:02:54]} 6. Bd3 {[%clk 0:02:46]}  b6 {[%clk 0:02:50]} 7. Na3 {[%clk 0:02:45]}  Bb7 {[%clk 0:02:47]} 8. Nc4 {[%clk 0:02:45]}  Qc7 {[%clk 0:02:48]} 9. a4 {[%clk 0:02:40]}  Nf4 {[%clk 0:02:34]} 10. O-O {[%clk 0:02:29]}  Nxd3 {[%clk 0:02:31]} 11. cxd3 {[%clk 0:02:30]}  d5 {[%clk 0:02:26]} 12. exd6 {[%clk 0:02:29]}  Bxd6 {[%clk 0:02:26]} 13. Ng5 {[%clk 0:01:37]}  Bxh2+ {[%clk 0:02:22]} 14. Kh1 {[%clk 0:01:35]}  Bf4 {[%clk 0:02:17]} 15. Qh5 {[%clk 0:01:28]}  g6 {[%clk 0:01:58]} 16. Qh4 {[%clk 0:01:21]}  Nd4 {[%clk 0:01:52]} 17. Bxd4 {[%clk 0:00:53]}  cxd4 {[%clk 0:01:52]} 18. Ne4 {[%clk 0:00:53]}  f5 {[%clk 0:01:41]} 19. Qf6 {[%clk 0:00:47]}  fxe4 {[%clk 0:00:29]} 20. Qxh8+ {[%clk 0:00:42]}  Kf7 {[%clk 0:00:19]} 21. Qxh7+ {[%clk 0:00:40]}  Kf6 {[%clk 0:00:19]} 22. Qh4+ {[%clk 0:00:18]}  Kg7 {[%clk 0:00:18]} 23. Nd6 {[%clk 0:00:03]}  Rh8 {[%clk 0:00:12]} 24. Ne8+ {[%clk 0:00:01]}  Rxe8 {[%clk 0:00:11]} 25. Rac1 {[%clk 0:00:02]}  Qd6 {[%clk 0:00:08]} 26. Kg1 {[%clk 0:00:02]}  Rh8 {[%clk 0:00:07]} 27. Qg4 {[%clk 0:00:01]}  Bh2+ {[%clk 0:00:08]} 28. Kh1 {[%clk 0:00:02]}  Bg1+ {[%clk 0:00:08]} 29. Qh3 {[%clk 0:00:02]}  Rxh3+ {[%clk 0:00:06]} 30. Kxg1 {[%clk 0:00:03]}  Qh2# {[%clk 0:00:06]} 0-1


[Site "https://www.chess.com"]

[Event "Titled Tuesday Blitz May 24 Early 2022"]
[White "Cardoso Cardoso, Jose Gabriel"]
[Black "Wadsworth, Matthew J"]
[WhiteFideId "4430492"]
[BlackFideId "415804"]
[WhiteElo "2485"]
[BlackElo "2294"]
[Result "1-0"]
[Round "02"]
[TimeControl "180+1"]
[Date "2022.05.25"]
[WhiteClock "0:00:23"]
[BlackClock "0:00:21"]

1. c4 {[%clk 0:03:00]}  e5 {[%clk 0:02:59]} 2. Nc3 {[%clk 0:02:54]}  Bb4 {[%clk 0:02:58]} 3. Nd5 {[%clk 0:02:52]}  Be7 {[%clk 0:02:58]} 4. e3 {[%clk 0:02:44]}  c6 {[%clk 0:02:57]} 5. Nxe7 {[%clk 0:02:42]}  Qxe7 {[%clk 0:02:57]} 6. d4 {[%clk 0:02:42]}  exd4 {[%clk 0:02:54]} 7. Qxd4 {[%clk 0:02:31]}  Nf6 {[%clk 0:02:54]} 8. Nf3 {[%clk 0:02:30]}  d5 {[%clk 0:02:52]} 9. Be2 {[%clk 0:02:25]}  dxc4 {[%clk 0:02:50]} 10. Qxc4 {[%clk 0:02:22]}  Be6 {[%clk 0:02:49]} 11. Qc2 {[%clk 0:02:20]}  Nbd7 {[%clk 0:02:42]} 12. O-O {[%clk 0:02:18]}  Bg4 {[%clk 0:02:25]} 13. h3 {[%clk 0:02:03]}  Bh5 {[%clk 0:02:24]} 14. b3 {[%clk 0:01:58]}  O-O {[%clk 0:02:21]} 15. Bb2 {[%clk 0:01:56]}  Rfd8 {[%clk 0:02:15]} 16. Rad1 {[%clk 0:01:54]}  Nb6 {[%clk 0:02:09]} 17. Nd4 {[%clk 0:01:39]}  Bxe2 {[%clk 0:02:05]} 18. Qxe2 {[%clk 0:01:40]}  Qe4 {[%clk 0:01:54]} 19. Rd2 {[%clk 0:01:30]}  Rd7 {[%clk 0:01:40]} 20. Rfd1 {[%clk 0:01:27]}  Rad8 {[%clk 0:01:39]} 21. f3 {[%clk 0:01:06]}  Qg6 {[%clk 0:01:38]} 22. e4 {[%clk 0:01:05]}  Nh5 {[%clk 0:01:32]} 23. Nf5 {[%clk 0:01:03]}  Qe6 {[%clk 0:01:11]} 24. Qe3 {[%clk 0:00:53]}  f6 {[%clk 0:01:02]} 25. g4 {[%clk 0:00:49]}  g6 {[%clk 0:00:46]} 26. Nh6+ {[%clk 0:00:47]}  Kg7 {[%clk 0:00:46]} 27. gxh5 {[%clk 0:00:46]}  Qxh3 {[%clk 0:00:46]} 28. Rxd7+ {[%clk 0:00:42]}  Rxd7 {[%clk 0:00:46]} 29. Rxd7+ {[%clk 0:00:42]}  Nxd7 {[%clk 0:00:45]} 30. Ng4 {[%clk 0:00:40]}  Qg3+ {[%clk 0:00:43]} 31. Kf1 {[%clk 0:00:39]}  gxh5 {[%clk 0:00:44]} 32. Qh6+ {[%clk 0:00:38]}  Kf7 {[%clk 0:00:43]} 33. Qxh5+ {[%clk 0:00:38]}  Ke7 {[%clk 0:00:42]} 34. Qxh7+ {[%clk 0:00:35]}  Kd8 {[%clk 0:00:42]} 35. Qf5 {[%clk 0:00:30]}  Qh3+ {[%clk 0:00:39]} 36. Kf2 {[%clk 0:00:30]}  Kc7 {[%clk 0:00:34]} 37. Bxf6 {[%clk 0:00:28]}  Nxf6 {[%clk 0:00:24]} 38. Qxf6 {[%clk 0:00:28]}  Qh1 {[%clk 0:00:25]} 39. Qe5+ {[%clk 0:00:26]}  Kb6 {[%clk 0:00:25]} 40. Qd4+ {[%clk 0:00:26]}  Ka6 {[%clk 0:00:24]} 41. Qd3+ {[%clk 0:00:25]}  Kb6 {[%clk 0:00:24]} 42. Qf1 {[%clk 0:00:25]}  Qh8 {[%clk 0:00:23]} 43. Qe1 {[%clk 0:00:24]}  Qb2+ {[%clk 0:00:21]} 44. Qe2 {[%clk 0:00:24]}  Qb1 {[%clk 0:00:21]} 45. e5 {[%clk 0:00:23]} 1-0


[Site "https://www.chess.com"]

[Event "Titled Tuesday Blitz May 24 Early 2022"]
[White "Castaneda, Jhon David"]
[Black "Seo, Jung Min"]
[WhiteFideId "4405048"]
[BlackFideId "1734687"]
[WhiteElo "2152"]
[BlackElo "2401"]
[Result "0-1"]
[Round "02"]
[TimeControl "180+1"]
[Date "2022.05.25"]
[WhiteClock "0:00:06"]
[BlackClock "0:00:07"]

1. d4 {[%clk 0:03:00]}  Nf6 {[%clk 0:03:00]} 2. Nf3 {[%clk 0:03:00]}  e6 {[%clk 0:03:00]} 3. c4 {[%clk 0:03:01]}  d5 {[%clk 0:03:00]} 4. Nc3 {[%clk 0:03:01]}  Bb4 {[%clk 0:03:00]} 5. cxd5 {[%clk 0:03:01]}  exd5 {[%clk 0:02:59]} 6. Qa4+ {[%clk 0:03:02]}  Nc6 {[%clk 0:02:58]} 7. Bg5 {[%clk 0:03:02]}  h6 {[%clk 0:02:57]} 8. Bxf6 {[%clk 0:03:02]}  Qxf6 {[%clk 0:02:57]} 9. e3 {[%clk 0:03:03]}  O-O {[%clk 0:02:50]} 10. Be2 {[%clk 0:03:03]}  Rd8 {[%clk 0:02:49]} 11. O-O {[%clk 0:03:04]}  Bf8 {[%clk 0:02:46]} 12. Rac1 {[%clk 0:03:00]}  Qd6 {[%clk 0:02:39]} 13. Bb5 {[%clk 0:02:53]}  Ne7 {[%clk 0:02:38]} 14. Ne5 {[%clk 0:02:48]}  c6 {[%clk 0:02:36]} 15. Be2 {[%clk 0:02:47]}  Ng6 {[%clk 0:02:34]} 16. f4 {[%clk 0:02:46]}  Ne7 {[%clk 0:02:29]} 17. Qd1 {[%clk 0:02:35]}  Nf5 {[%clk 0:02:28]} 18. Qd2 {[%clk 0:02:34]}  f6 {[%clk 0:02:20]} 19. Nf3 {[%clk 0:02:22]}  Re8 {[%clk 0:02:20]} 20. Nd1 {[%clk 0:02:21]}  Qe7 {[%clk 0:02:18]} 21. Bd3 {[%clk 0:02:20]}  Bd7 {[%clk 0:02:06]} 22. Re1 {[%clk 0:02:20]}  h5 {[%clk 0:02:04]} 23. Nf2 {[%clk 0:02:10]}  Qf7 {[%clk 0:01:56]} 24. e4 {[%clk 0:02:00]}  dxe4 {[%clk 0:01:55]} 25. Nxe4 {[%clk 0:02:00]}  a5 {[%clk 0:01:51]} 26. b3 {[%clk 0:01:59]}  Bb4 {[%clk 0:01:50]} 27. Qf2 {[%clk 0:01:56]}  Bxe1 {[%clk 0:01:49]} 28. Rxe1 {[%clk 0:01:57]}  Be6 {[%clk 0:01:46]} 29. Nc5 {[%clk 0:01:57]}  Nd6 {[%clk 0:01:46]} 30. Nh4 {[%clk 0:01:54]}  Bd5 {[%clk 0:01:37]} 31. Bg6 {[%clk 0:01:48]}  Rxe1+ {[%clk 0:01:31]} 32. Qxe1 {[%clk 0:01:49]}  Qc7 {[%clk 0:01:17]} 33. Qe2 {[%clk 0:01:45]}  Bf7 {[%clk 0:01:14]} 34. Qxh5 {[%clk 0:01:44]}  Bxg6 {[%clk 0:01:14]} 35. Nxg6 {[%clk 0:01:44]}  Re8 {[%clk 0:01:12]} 36. h3 {[%clk 0:01:15]}  Qc8 {[%clk 0:01:00]} 37. g4 {[%clk 0:00:56]}  b6 {[%clk 0:00:59]} 38. Nd3 {[%clk 0:00:52]}  Qe6 {[%clk 0:00:57]} 39. Nf2 {[%clk 0:00:50]}  Qe3 {[%clk 0:00:54]} 40. Qh8+ {[%clk 0:00:42]}  Kf7 {[%clk 0:00:54]} 41. Qh5 {[%clk 0:00:42]}  Qxd4 {[%clk 0:00:41]} 42. Ne5+ {[%clk 0:00:40]}  Kg8 {[%clk 0:00:38]} 43. Nxc6 {[%clk 0:00:35]}  Qxf4 {[%clk 0:00:31]} 44. Qd5+ {[%clk 0:00:33]}  Kf8 {[%clk 0:00:27]} 45. Nd4 {[%clk 0:00:33]}  Qe5 {[%clk 0:00:26]} 46. Qxe5 {[%clk 0:00:21]}  Rxe5 {[%clk 0:00:25]} 47. Kf1 {[%clk 0:00:17]}  Ne4 {[%clk 0:00:23]} 48. Nd3 {[%clk 0:00:13]}  Rd5 {[%clk 0:00:22]} 49. Ne6+ {[%clk 0:00:10]}  Ke7 {[%clk 0:00:20]} 50. Nef4 {[%clk 0:00:11]}  Rd6 {[%clk 0:00:19]} 51. Ke2 {[%clk 0:00:07]}  Nc3+ {[%clk 0:00:18]} 52. Ke3 {[%clk 0:00:08]}  Nxa2 {[%clk 0:00:18]} 53. Ng6+ {[%clk 0:00:06]}  Kf7 {[%clk 0:00:17]} 54. Ndf4 {[%clk 0:00:07]}  Nb4 {[%clk 0:00:16]} 55. h4 {[%clk 0:00:06]}  Nd5+ {[%clk 0:00:15]} 56. Ke4 {[%clk 0:00:06]}  Nxf4 {[%clk 0:00:14]} 57. Nxf4 {[%clk 0:00:07]}  Rd1 {[%clk 0:00:13]} 58. Nd5 {[%clk 0:00:06]}  b5 {[%clk 0:00:14]} 59. Nc3 {[%clk 0:00:06]}  Re1+ {[%clk 0:00:14]} 60. Kf3 {[%clk 0:00:05]}  b4 {[%clk 0:00:13]} 61. Na4 {[%clk 0:00:04]}  Rb1 {[%clk 0:00:12]} 62. Nc5 {[%clk 0:00:04]}  Rc1 {[%clk 0:00:12]} 63. Na4 {[%clk 0:00:01]}  Ke6 {[%clk 0:00:09]} 64. Ke3 {[%clk 0:00:02]}  Ke5 {[%clk 0:00:09]} 65. Kd3 {[%clk 0:00:02]}  Rg1 {[%clk 0:00:08]} 66. Nc5 {[%clk 0:00:02]}  Rxg4 {[%clk 0:00:07]} 67. Nd7+ {[%clk 0:00:03]}  Kf4 {[%clk 0:00:07]} 68. Nf8 {[%clk 0:00:03]}  Rxh4 {[%clk 0:00:06]} 69. Ng6+ {[%clk 0:00:02]}  Kg3 {[%clk 0:00:07]} 70. Nxh4 {[%clk 0:00:03]}  Kxh4 {[%clk 0:00:07]} 71. Kc4 {[%clk 0:00:03]}  g5 {[%clk 0:00:07]} 72. Kb5 {[%clk 0:00:04]}  g4 {[%clk 0:00:07]} 73. Kxa5 {[%clk 0:00:05]}  g3 {[%clk 0:00:07]} 74. Kxb4 {[%clk 0:00:06]}  g2 {[%clk 0:00:07]} 0-1


[Site "https://www.chess.com"]

[Event "Titled Tuesday Blitz May 24 Early 2022"]
[White "Cervantes Landeiro, Thalia"]
[Black "Van den Dikkenberg, Erik"]
[WhiteFideId "3520498"]
[BlackFideId "1005880"]
[WhiteElo "2021"]
[BlackElo "2118"]
[Result "1-0"]
[Round "02"]
[TimeControl "180+1"]
[Date "2022.05.25"]
[WhiteClock "0:01:41"]
[BlackClock "0:00:57"]

1. d4 {[%clk 0:03:00]}  Nf6 {[%clk 0:02:59]} 2. c4 {[%clk 0:03:01]}  g6 {[%clk 0:02:59]} 3. Nc3 {[%clk 0:03:00]}  Bg7 {[%clk 0:02:59]} 4. e4 {[%clk 0:03:01]}  O-O {[%clk 0:03:00]} 5. f4 {[%clk 0:03:02]}  d6 {[%clk 0:03:00]} 6. Nf3 {[%clk 0:03:02]}  c5 {[%clk 0:03:01]} 7. d5 {[%clk 0:03:03]}  b5 {[%clk 0:03:00]} 8. cxb5 {[%clk 0:03:02]}  a6 {[%clk 0:03:00]} 9. a4 {[%clk 0:03:03]}  axb5 {[%clk 0:02:59]} 10. Bxb5 {[%clk 0:03:04]}  Bg4 {[%clk 0:02:53]} 11. O-O {[%clk 0:03:03]}  Qa5 {[%clk 0:02:49]} 12. h3 {[%clk 0:03:02]}  Bxf3 {[%clk 0:02:48]} 13. Qxf3 {[%clk 0:03:03]}  Qb4 {[%clk 0:02:39]} 14. Rb1 {[%clk 0:02:45]}  Nbd7 {[%clk 0:02:32]} 15. Bd2 {[%clk 0:02:38]}  Nb6 {[%clk 0:02:21]} 16. e5 {[%clk 0:02:24]}  dxe5 {[%clk 0:02:15]} 17. fxe5 {[%clk 0:02:25]}  Qd4+ {[%clk 0:02:15]} 18. Be3 {[%clk 0:02:04]}  Qxe5 {[%clk 0:02:14]} 19. Bxc5 {[%clk 0:02:04]}  Nbxd5 {[%clk 0:01:25]} 20. Nxd5 {[%clk 0:02:02]}  Nxd5 {[%clk 0:01:23]} 21. Rbe1 {[%clk 0:01:52]}  Qg5 {[%clk 0:01:13]} 22. h4 {[%clk 0:01:49]}  Qxh4 {[%clk 0:01:08]} 23. Qxd5 {[%clk 0:01:48]}  Rfc8 {[%clk 0:01:09]} 24. Qxf7+ {[%clk 0:01:47]}  Kh8 {[%clk 0:01:07]} 25. Rxe7 {[%clk 0:01:46]}  Qh6 {[%clk 0:00:57]} 26. Be3 {[%clk 0:01:41]} 1-0


[Site "https://www.chess.com"]